bitfinex-derivatives/quotes_ETHF0:USTF0_20241104
["timestamp","ask_amount","ask_price","bid_price","bid_amount"]
[1730709503417,1.01592977,2460.8,2460.7,3.58171929]
[1730709503617,1.01592977,2460.8,2460.7,7.64571929]
[1730709504021,1.01592977,2460.8,2460.7,3.58171929]
[1730709504214,1.44352977,2460.8,2460.7,3.58171929]
[1730709505423,1.44352977,2460.8,2460.7,7.64571929]
[1730709505721,1.01592977,2460.8,2460.7,7.64571929]
[1730709506321,1.01592977,2460.8,2460.7,3.58171929]
[1730709506721,1.42263977,2460.8,2460.7,0.40673]
[1730709506923,1.86273977,2460.8,2460.7,0.40673]
[1730709507313,1.42263977,2460.8,2460.7,0.40673]
[1730709508023,1.01592977,2460.8,2460.3,3.17498929]
[1730709508215,3.6447,2460.7,2460.5,0.40675]
[1730709508417,0.40675,2460.6,2460.5,0.40675]
[1730709508928,4.05143,2460.7,2460.6,0.40675]
[1730709509725,0.4369,2460.7,2460.6,0.40675]
[1730709510227,0.4369,2460.7,2460.6,0.83705]
[1730709510728,0.4369,2460.7,2460.6,0.40675]
[1730709510929,0.84363,2460.7,2460.6,0.40675]
[1730709511126,0.4369,2460.7,2460.6,0.40675]
[1730709511820,0.84363,2460.7,2460.6,0.40675]
[1730709512024,0.4369,2460.7,2460.5,3.17498929]
[1730709512222,0.40678,2460.5,2460.4,0.40676]
[1730709512530,0.40679,2460.4,2460.3,0.40678]
[1730709512725,1.29689,2460.4,2460.3,0.40678]
[1730709513223,0.4068,2460.3,2460.2,3.6146]
[1730709513419,0.4259,2460.3,2460.2,3.61461]
[1730709513626,0.8327,2460.3,2460.2,3.61461]
[1730709513821,0.4259,2460.3,2460.2,3.61461]
[1730709514431,0.8327,2460.3,2460.2,3.61461]
[1730709514725,0.8327,2460.3,2460.2,0.40681]
[1730709514930,0.8327,2460.3,2460.1,3.17498929]
[1730709514931,0.4259,2460.3,2460.1,3.17498929]
[1730709515131,0.40681,2460.2,2460.1,3.58179929]
[1730709516433,0.83271,2460.3,2460.2,0.40681]
[1730709516734,0.4259,2460.3,2460.2,0.40681]
[1730709516928,0.8327,2460.3,2460.2,0.40681]
[1730709517737,0.4259,2460.3,2460.2,0.40681]
[1730709518941,0.8327,2460.3,2460.2,0.40681]
[1730709519232,0.4259,2460.3,2460.2,0.40681]
[1730709519735,0.8327,2460.3,2460.2,0.40681]
[1730709519938,0.4259,2460.3,2459.9,4.19213929]
[1730709520239,0.83271,2460.3,2460.2,0.40681]
[1730709520941,0.4259,2460.3,2460.2,0.40681]
[1730709521329,0.4259,2460.3,2460.2,0.85961]
[1730709522431,0.8327,2460.3,2460.2,0.85961]
[1730709522631,0.8327,2460.3,2460.2,0.40681]
[1730709526837,0.4259,2460.3,2460.1,3.17498929]
[1730709527139,0.4259,2460.3,2459.9,1.51679979]
[1730709527140,0.40688,2459.9,2459.8,0.40687]
[1730709527442,5.08184,2460.2,2459.9,0.40685]
[1730709527443,0.40686,2460.0,2459.9,0.40685]
[1730709527648,0.8934,2460.0,2459.9,0.40685]
[1730709527841,0.40688,2459.9,2459.8,0.40687]
[1730709528045,0.85728,2459.9,2459.8,0.40687]
[1730709528946,0.4504,2459.9,2459.7,3.2078]
[1730709529248,0.40688,2459.8,2459.7,3.61468]
[1730709529735,0.40691,2459.7,2459.6,0.4069]
[1730709531140,3.2078,2459.8,2459.4,4.19234929]
[1730709531337,0.85728,2459.9,2459.8,0.40688]
[1730709531738,0.4504,2459.9,2459.6,3.17498929]
[1730709531950,0.40689,2459.8,2459.7,0.40689]
[1730709533249,3.6582,2459.9,2459.6,3.58187929]
[1730709533250,0.40689,2459.7,2459.6,3.58187929]
[1730709533447,0.40689,2459.7,2459.6,0.40689]
[1730709533647,4.0656,2459.7,2459.2,8.46422908]
[1730709533950,0.40694,2459.5,2459.4,0.40693]
[1730709534448,4.0916,2459.6,2459.2,6.38278929]
[1730709534641,4.0916,2459.6,2459.3,0.40695]
[1730709534642,0.40695,2459.4,2459.3,0.40695]
[1730709535238,0.40696,2459.3,2459.2,6.78975929]
[1730709535746,0.40696,2459.4,2459.3,0.40695]
[1730709536839,0.40696,2459.3,2459.2,3.61477]
[1730709537249,0.458,2459.5,2459.2,3.2078]
[1730709537438,0.40695,2459.4,2459.3,0.40695]
[1730709538043,0.40695,2459.4,2459.2,3.2078]
[1730709538044,0.86494,2459.5,2459.4,0.40694]
[1730709538243,0.86494,2459.5,2459.2,3.2078]
[1730709538244,0.40696,2459.4,2459.3,0.40695]
[1730709538849,0.458,2459.5,2459.2,3.2078]
[1730709539146,0.86494,2459.5,2459.4,0.40694]
[1730709539944,0.40695,2459.4,2459.3,0.40694]
[1730709540348,0.458,2459.5,2459.2,3.2078]
[1730709540549,0.40696,2459.4,2459.3,0.40695]
[1730709541051,0.458,2459.5,2459.4,0.40694]
[1730709541052,0.86493,2459.5,2459.4,0.40694]
[1730709541448,0.40695,2459.4,2459.3,0.40695]
[1730709541647,0.40696,2459.3,2459.2,3.2078]
[1730709541846,0.40696,2459.3,2459.2,3.61478]
[1730709542447,0.40696,2459.3,2459.2,3.2078]
[1730709542642,0.40696,2459.3,2459.2,3.61478]
[1730709542847,0.40696,2459.4,2459.3,0.40695]
[1730709543254,0.458,2459.5,2459.4,0.40694]
[1730709543255,0.86494,2459.5,2459.4,0.40694]
[1730709543844,0.40695,2459.4,2459.3,0.40694]
[1730709544645,0.86494,2459.5,2459.4,0.40694]
[1730709545050,0.40694,2459.5,2459.4,0.40694]
[1730709545950,4.06292,2459.6,2459.5,0.40693]
[1730709546156,0.85511,2459.6,2459.5,0.40693]
[1730709548150,0.4482,2459.6,2459.5,0.40693]
[1730709548348,0.85511,2459.6,2459.5,0.40693]
[1730709549344,0.4482,2459.6,2459.5,0.40693]
[1730709549549,0.4069,2459.7,2459.6,0.40689]
[1730709550653,0.4069,2459.7,2459.1,5.20991929]
[1730709550654,7.24058929,2459.7,2458.7,3.09924979]
[1730709550954,0.40699,2459.2,2459.1,0.40698]
[1730709551160,3.61477,2459.3,2459.2,0.40698]
[1730709554152,0.85465,2459.4,2459.3,0.40696]
[1730709554359,0.8797,2459.6,2459.3,0.4593]
[1730709554554,0.40693,2459.5,2459.4,0.82723]
[1730709555453,0.40693,2459.5,2459.4,0.40693]
[1730709556155,0.85462,2459.6,2459.5,0.40693]
[1730709558458,0.4477,2459.6,2459.3,0.8796]
[1730709558754,0.40694,2459.5,2459.4,0.40693]
[1730709559458,0.40702,2459.1,2459.0,0.40699]
[1730709559764,3.2078,2459.3,2458.9,0.4372]
[1730709559958,0.8795,2459.2,2459.1,0.40698]
[1730709560263,3.2078,2459.3,2459.2,0.40696]
[1730709560264,0.40698,2459.3,2459.2,0.40696]
[1730709560460,0.84418,2459.3,2459.2,0.40696]
[1730709561152,0.84925,2459.4,2459.3,0.40696]
[1730709562062,0.4423,2459.4,2459.3,0.40696]
[1730709562263,0.84924,2459.4,2459.3,0.40696]
[1730709562660,0.84924,2459.4,2459.3,0.82856]
[1730709562859,0.40694,2459.4,2459.3,0.82856]
[1730709563055,0.82654,2459.5,2459.4,0.40694]
[1730709565264,0.40694,2459.4,2459.3,0.82855]
[1730709565768,0.40694,2459.4,2459.3,0.4216]
[1730709566159,0.40696,2459.3,2459.2,0.40696]
[1730709566462,0.40699,2459.1,2459.0,0.83951]
[1730709566758,0.40703,2458.9,2458.8,4.03303]
[1730709567757,0.4323,2459.0,2458.9,0.40703]
[1730709567965,0.407,2459.1,2459.0,0.40701]
[1730709568160,0.8393,2459.1,2459.0,0.40701]
[1730709568558,0.40703,2459.0,2458.9,0.40701]
[1730709569061,0.83931,2459.1,2459.0,0.40701]
[1730709569763,0.83931,2459.1,2458.8,4.64361]
[1730709569764,0.40702,2459.0,2458.9,0.40701]
[1730709569959,0.4323,2459.1,2458.8,0.4182]
[1730709570166,0.4323,2459.1,2458.8,0.82522]
[1730709570167,0.40703,2458.9,2458.8,0.82522]
[1730709570464,0.40702,2459.0,2458.9,0.40701]
[1730709570667,3.2078,2459.3,2458.8,0.4182]
[1730709570866,0.407,2459.2,2459.1,0.40698]
[1730709571160,0.8427,2459.2,2459.1,0.40698]
[1730709571355,0.40701,2459.1,2459.0,0.407]
[1730709571557,3.61481,2459.1,2459.0,0.407]
[1730709571964,0.40702,2459.0,2458.9,0.40701]
[1730709572162,0.40703,2458.9,2458.8,0.82523]
[1730709572465,0.86083,2458.9,2458.8,1.39924734]
[1730709573063,0.86083,2458.9,2458.8,0.99221734]
[1730709573265,0.86083,2458.9,2458.8,0.82524]
[1730709573562,0.86083,2458.9,2458.8,1.39938445]
[1730709573761,0.86083,2458.9,2458.8,0.98118445]
[1730709574271,0.86083,2458.9,2458.8,1.49278989]
[1730709574457,0.86083,2458.9,2458.8,0.57414445]
[1730709576564,0.86083,2458.9,2458.8,0.98118445]
[1730709576773,0.86083,2458.9,2458.8,0.98122216]
[1730709577069,0.86083,2458.9,2458.5,1.06399979]
[1730709577070,4.521,2458.9,2458.5,1.06399979]
[1730709577365,3.2078,2458.6,2458.1,1.48689979]
[1730709577559,0.40711,2458.4,2458.3,0.40713]
[1730709577761,0.40714,2458.3,2458.2,0.40713]
[1730709579167,0.4638,2458.4,2458.1,0.8792]
[1730709579374,0.87092,2458.4,2458.3,0.40713]
[1730709579575,0.4638,2458.4,2458.3,0.40713]
[1730709580559,0.87091,2458.4,2458.3,0.40713]
[1730709580764,0.4638,2458.4,2458.3,0.40713]
[1730709581371,0.87091,2458.4,2458.3,0.40713]
[1730709584070,0.4638,2458.4,2458.3,0.40713]
[1730709584267,0.87091,2458.4,2458.3,0.40713]
[1730709584471,0.86009,2458.6,2458.5,0.40709]
[1730709584672,1.29229,2458.6,2458.5,0.40709]
[1730709585473,1.29229,2458.6,2458.5,0.86529]
[1730709587670,4.50009,2458.6,2458.5,0.86529]
[1730709588677,0.83929,2458.6,2458.5,0.86529]
[1730709588879,0.83928,2458.6,2458.5,0.86529]
[1730709589272,0.40708,2458.7,2458.6,0.40706]
[1730709589678,0.8931,2458.8,2458.5,0.8847]
[1730709589875,0.82709,2458.9,2458.5,5.11012]
[1730709590078,0.82709,2458.9,2458.8,0.407]
[1730709590079,0.4201,2458.9,2458.8,0.407]
[1730709590272,0.82709,2458.9,2458.8,0.407]
[1730709593776,0.82709,2458.9,2458.6,1.01758]
[1730709593777,0.84438,2459.0,2458.9,0.40699]
[1730709594582,0.84438,2459.0,2458.9,0.86199]
[1730709595090,0.457,2459.1,2458.9,0.455]
[1730709595381,0.457,2459.1,2459.0,0.40697]
[1730709595577,0.40694,2459.2,2459.1,0.40695]
[1730709595979,0.86523,2459.3,2459.2,0.40694]
[1730709596177,0.86523,2459.3,2458.9,1.90265]
[1730709596178,0.84029,2459.5,2459.4,0.4069]
[1730709597085,0.4583,2459.6,2459.5,0.40689]
[1730709597286,0.40686,2459.7,2459.6,0.40687]
[1730709597783,0.40689,2459.5,2459.4,0.83709]
[1730709597980,0.40689,2459.5,2459.4,0.40689]
[1730709600885,0.8578,2459.8,2459.3,0.455]
[1730709601085,0.40688,2459.7,2459.6,0.40686]
[1730709601281,0.40689,2459.6,2459.5,0.40688]
[1730709601683,0.4069,2459.5,2459.4,0.40689]
[1730709601878,0.4069,2459.4,2459.3,0.86191]
[1730709602093,1.2976,2459.4,2459.3,0.86191]
[1730709602385,0.40692,2459.3,2459.2,0.83333]
[1730709602782,1.74351,2459.4,2459.3,0.40692]
[1730709603485,4.225,2459.6,2459.5,0.40689]
[1730709603486,3.2078,2459.6,2459.5,0.40689]
[1730709603993,0.4484,2459.8,2459.7,0.40685]
[1730709604381,0.4492,2460.0,2459.7,4.0656]
[1730709604583,0.40686,2459.7,2459.6,0.40685]
[1730709605085,1.46546,2459.9,2459.4,3.6628]
[1730709605284,0.40688,2459.6,2459.5,0.40687]
[1730709605880,1.46546,2459.9,2459.4,3.6628]
[1730709606085,0.40687,2459.7,2459.6,0.40686]
[1730709607393,0.4484,2459.9,2459.6,4.0656]
[1730709607585,0.85523,2459.9,2459.8,0.40684]
[1730709607784,0.4484,2459.9,2459.8,0.40684]
[1730709608392,0.85522,2459.9,2459.8,0.40684]
[1730709608594,4.514,2459.9,2459.4,3.6628]
[1730709608788,0.40686,2459.8,2459.7,0.40685]
[1730709609693,0.40686,2459.7,2459.6,0.40685]
[1730709609996,0.84036,2459.7,2459.6,0.40685]
[1730709611188,0.40689,2459.6,2459.5,0.40688]
[1730709611391,0.82959,2459.6,2459.5,0.40688]
[1730709611595,0.4227,2459.6,2459.5,0.40688]
[1730709611794,0.82957,2459.6,2459.5,0.40688]
[1730709612194,0.4227,2459.6,2459.5,0.40688]
[1730709612900,0.82957,2459.6,2459.5,0.40688]
[1730709613096,4.4883,2459.6,2459.3,0.40691]
[1730709613301,0.4069,2459.4,2459.3,0.40691]
[1730709613495,0.4069,2459.4,2459.0,5.25638908]
[1730709613496,1.01727,2459.4,2459.0,1.06399979]
[1730709613798,0.40695,2459.1,2459.0,1.06399979]
[1730709614301,1.27605,2459.1,2459.0,1.06399979]
[1730709614700,5.34245,2459.1,2459.0,0.36749979]
[1730709615994,1.27605,2459.1,2459.0,0.36749979]
[1730709616600,0.40699,2458.9,2458.8,0.82849]
[1730709618297,0.40699,2458.9,2458.8,0.4215]
[1730709618590,0.407,2458.8,2458.7,0.40701]
[1730709618795,0.40704,2458.7,2458.6,0.40702]
[1730709621104,0.40701,2458.8,2458.7,0.407]
[1730709622595,0.85931,2458.9,2458.8,0.407]
[1730709623901,0.85931,2458.9,2458.5,8.26898929]
[1730709624108,0.40703,2458.8,2458.7,0.407]
[1730709631010,0.407,2458.9,2458.8,0.40697]
[1730709631207,0.407,2458.9,2458.6,1.0176]
[1730709631208,4.0769,2459.1,2458.6,1.0176]
[1730709631418,0.40699,2459.0,2458.9,0.40697]
[1730709632117,0.40699,2459.0,2458.9,0.83067]
[1730709633322,0.40703,2458.8,2458.7,0.407]
[1730709635819,0.40702,2458.7,2458.6,1.28032]
[1730709636525,0.40704,2458.6,2458.5,0.40705]
[1730709636722,0.40705,2458.5,2458.4,0.85667]
[1730709636921,0.9007,2458.6,2458.5,0.40705]
[1730709636922,1.30774,2458.6,2458.5,0.40705]
[1730709637118,0.84774,2458.6,2458.5,0.40705]
[1730709637721,0.40704,2458.6,2458.5,0.40705]
[1730709638623,0.8413,2458.8,2458.4,0.4496]
[1730709638822,0.40704,2458.7,2458.6,0.40702]
[1730709639029,0.40704,2458.7,2458.6,0.27628115]
[1730709640119,0.40704,2458.7,2458.6,0.68330115]
[1730709641222,0.40705,2458.6,2458.5,0.40704]
[1730709642216,0.40705,2458.6,2458.5,1.28004]
[1730709642426,0.4207,2458.8,2458.5,0.873]
[1730709642627,0.40704,2458.7,2458.6,0.40702]
[1730709643124,0.87059,2458.9,2458.8,0.407]
[1730709643320,0.40699,2458.9,2458.8,0.407]
[1730709643633,0.407,2458.9,2458.8,0.40699]
[1730709645737,0.40703,2458.7,2458.6,0.40701]
[1730709646425,0.85653,2458.7,2458.6,0.40701]
[1730709648226,0.85653,2458.7,2458.5,0.4282]
[1730709648227,0.84081,2458.8,2458.7,0.40702]
[1730709652740,0.40704,2458.7,2458.6,0.40702]
[1730709653333,0.40704,2458.7,2458.6,0.40704]
[1730709653530,0.84081,2458.8,2458.5,0.4282]
[1730709653730,0.85925,2458.6,2458.5,0.40705]
[1730709656544,0.85925,2458.6,2458.5,0.98519818]
[1730709656736,0.85925,2458.6,2458.5,0.40705]
[1730709657333,0.85925,2458.6,2458.5,0.98555963]
[1730709657539,0.85925,2458.6,2458.5,0.57850963]
[1730709657841,0.85925,2458.6,2458.5,0.98555963]
[1730709658036,0.85925,2458.6,2458.5,0.98557348]
[1730709658238,0.85925,2458.6,2458.5,0.57852348]
[1730709658438,0.85925,2458.6,2458.5,0.98557348]
[1730709659341,0.85925,2458.6,2458.5,1.50541165]
[1730709659543,0.85925,2458.6,2458.5,1.91246165]
[1730709663238,0.40705,2458.6,2458.5,1.91246165]
[1730709663947,0.40705,2458.6,2458.5,1.91327181]
[1730709665145,4.47425,2458.6,2458.5,0.57931608]
[1730709665449,4.47425,2458.6,2458.3,0.40707]
[1730709665450,0.4071,2458.4,2458.3,0.40707]
[1730709665841,1.2845,2458.4,2458.3,0.98629097]
[1730709666139,1.2845,2458.4,2458.3,0.57922097]
[1730709666337,6.81908797,2458.4,2458.3,0.57922097]
[1730709666551,6.81908797,2458.4,2457.9,0.86005]
[1730709666552,0.40713,2458.0,2457.9,0.86005]
[1730709666843,0.40713,2458.0,2457.9,4.59992846]
[1730709666844,3.61493,2458.0,2457.9,4.59992846]
[1730709667045,5.08151797,2458.0,2457.9,1.50576639]
[1730709667242,5.08151797,2458.0,2457.9,0.57914092]
[1730709667443,3.61493,2458.0,2457.9,0.57914092]
[1730709667646,4.51213,2458.0,2457.9,0.57914092]
[1730709668447,4.105,2458.0,2457.8,0.05]
[1730709668640,4.51213,2458.0,2457.9,0.57863957]
[1730709669247,4.105,2458.0,2457.8,0.05]
[1730709669449,0.40715,2457.9,2457.8,0.05]
[1730709669645,0.40715,2457.9,2457.8,0.628456]
[1730709669841,0.40715,2457.9,2457.8,1.035626]
[1730709670247,0.40715,2457.9,2457.8,0.45717]
[1730709670743,4.51215,2458.0,2457.9,0.40715]
[1730709671144,1.01779,2458.2,2457.9,0.40715]
[1730709671145,0.40711,2458.2,2458.1,0.4071]
[1730709672249,0.40712,2458.1,2458.0,0.86913]
[1730709672855,6.8300609,2458.3,2457.8,0.05]
[1730709673039,0.40715,2457.9,2457.8,0.45716]
[1730709675648,0.86555,2457.9,2457.8,0.45716]
[1730709676542,4.0433109,2457.9,2457.8,0.05]
[1730709676746,4.0433109,2457.9,2456.4,0.63416965]
[1730709676747,2.03604,2457.6,2456.4,0.63416965]
[1730709676948,3.2078,2456.5,2455.6,0.8918]
[1730709677142,3.2078,2456.5,2455.8,0.20785475]
[1730709677143,0.40748,2455.9,2455.8,0.20785475]
[1730709677345,3.1777609,2455.9,2455.6,0.20785475]
[1730709677559,3.61532,2455.7,2455.6,0.20785475]
[1730709677758,0.40757,2455.5,2455.1,0.40761]
[1730709677953,3.1777609,2455.6,2455.4,0.20785475]
[1730709678250,3.1777609,2455.6,2454.8,0.40766]
[1730709678251,0.40761,2455.2,2454.8,0.40766]
[1730709678552,3.2078,2455.7,2455.1,3.2078]
[1730709678757,3.2078,2455.7,2455.3,0.40757]
[1730709678758,3.61532,2455.7,2455.3,0.40757]
[1730709678957,3.2078,2455.7,2455.2,0.8918]
[1730709679154,3.1777609,2455.8,2455.4,0.40755]
[1730709679155,3.5852609,2455.8,2455.4,0.40755]
[1730709679456,3.2078,2456.1,2455.3,5.09176]
[1730709679653,3.2078,2456.1,2455.4,0.98280878]
[1730709679846,3.5851809,2456.3,2455.9,0.40747]
[1730709680049,3.5851809,2456.3,2455.5,0.57462429]
[1730709680050,3.1777609,2456.5,2456.0,0.40746]
[1730709680250,3.1777609,2456.5,2456.1,0.40744]
[1730709680454,0.40743,2456.3,2455.9,1.25728]
[1730709680657,3.1777609,2456.5,2455.9,1.25728]
[1730709680953,3.1777609,2456.5,2455.9,0.8498]
[1730709680954,3.2078,2456.4,2455.9,0.8498]
[1730709681154,3.2078,2456.4,2455.9,1.25728]
[1730709681155,0.40742,2456.3,2455.9,1.25728]
[1730709681550,0.40746,2456.1,2455.9,0.8498]
[1730709681754,3.61526,2456.1,2455.9,0.8498]
[1730709682146,3.61526,2456.1,2455.4,3.2078]
[1730709682147,3.1777609,2456.0,2455.4,3.2078]
[1730709682456,3.1777609,2456.0,2455.6,0.40752]
[1730709682651,3.5852309,2456.0,2455.7,0.40751]
[1730709682854,3.1777609,2456.0,2455.7,0.40751]
[1730709683054,3.2078,2456.1,2456.0,0.40747]
[1730709683357,3.5851809,2456.3,2455.9,0.40747]
[1730709683655,3.61524,2456.2,2455.5,0.8648]
[1730709683853,3.2078,2456.2,2455.9,0.40747]
[1730709684053,3.2078,2456.2,2455.8,0.4075]
[1730709684254,0.40746,2456.1,2455.7,0.40751]
[1730709684757,3.2078,2456.2,2455.7,0.40751]
[1730709684959,3.2078,2456.2,2455.5,0.8648]
[1730709685461,3.1777609,2456.0,2455.5,0.8648]
[1730709685762,3.2078,2455.9,2455.7,0.40751]
[1730709686960,3.1777609,2456.0,2455.9,0.40748]
[1730709687964,3.2078,2456.2,2455.9,0.40748]
[1730709688361,3.61524,2456.2,2455.9,0.40748]
[1730709688661,3.2078,2456.2,2455.5,0.8648]
[1730709688861,6.3855609,2456.5,2456.1,0.40745]
[1730709689058,6.3855609,2456.5,2455.7,3.2078]
[1730709689257,3.61524,2456.2,2456.0,0.40746]
[1730709689462,3.2078,2456.2,2455.7,3.2078]
[1730709689665,0.40746,2456.1,2455.9,0.40747]
[1730709690052,3.61524,2456.2,2456.0,0.40745]
[1730709690758,3.61524,2456.2,2456.1,0.40745]
[1730709691160,7.68644,2456.2,2456.1,0.40745]
[1730709692357,4.47864,2456.2,2456.1,0.40745]
[1730709693659,3.2078,2456.4,2455.6,4.22664]
[1730709693859,3.2078,2456.4,2456.1,0.40744]
[1730709694066,0.40743,2456.3,2456.1,0.40744]
[1730709694266,0.40743,2456.3,2456.2,0.40743]
[1730709694666,3.2078,2456.4,2455.8,1.01876]
[1730709694859,0.40742,2456.3,2456.2,0.40742]
[1730709695058,3.61521,2456.4,2456.3,0.40742]
[1730709695258,3.6152,2456.4,2456.3,0.40742]
[1730709695464,3.2078,2456.4,2456.3,0.40742]
[1730709697668,3.2078,2456.4,2456.3,4.47862]
[1730709697971,3.61513,2456.9,2456.8,0.40733]
[1730709698268,3.61513,2456.9,2456.4,0.4074]
[1730709698269,0.40736,2456.7,2456.4,0.4074]
[1730709698467,3.2078,2456.9,2456.6,0.40737]
[1730709698664,0.40736,2456.7,2456.6,0.40737]
[1730709698871,3.2078,2456.9,2456.4,1.01848]
[1730709699071,3.61512,2456.9,2456.8,0.40733]
[1730709699263,0.40734,2456.8,2456.7,0.40734]
[1730709699869,0.40734,2456.8,2456.5,0.4229]
[1730709699870,0.40738,2456.6,2456.5,0.40738]
[1730709700064,0.40737,2456.6,2456.5,0.40737]
[1730709701071,7.2782,2456.6,2456.1,0.8599]
[1730709701269,0.40746,2456.1,2456.0,0.40745]
[1730709701775,0.40747,2456.0,2455.9,0.40747]
[1730709701964,3.2078,2456.0,2455.9,0.40748]
[1730709703473,3.61524,2456.2,2455.7,1.01879]
[1730709703769,0.40746,2456.1,2456.0,0.40746]
[1730709704168,3.2078,2456.2,2455.7,1.01879]
[1730709704376,3.61524,2456.2,2456.1,0.40745]
[1730709705776,0.40746,2456.1,2456.0,0.40745]
[1730709706283,0.40746,2456.1,2455.8,0.40748]
[1730709706284,0.4075,2455.9,2455.8,0.40748]
[1730709707670,0.4075,2455.9,2455.5,1.01885]
[1730709707671,0.40751,2455.8,2455.7,0.4075]
[1730709707866,4.6325009,2456.1,2455.5,1.01885]
[1730709708069,0.40751,2455.8,2455.7,0.4075]
[1730709709073,0.40749,2455.9,2455.8,0.40748]
[1730709709877,3.2078,2456.2,2455.4,0.8822]
[1730709710081,0.40746,2456.1,2456.0,0.40745]
[1730709712885,3.61524,2456.2,2456.1,0.40745]
[1730709714388,3.2078,2456.2,2456.1,0.40745]
[1730709714685,3.2078,2456.2,2456.0,0.40745]
[1730709714886,0.40747,2456.1,2456.0,0.40745]
[1730709715782,3.2078,2456.2,2455.9,0.4211]
[1730709716285,3.2078,2456.2,2456.0,0.40745]
[1730709716286,0.40746,2456.1,2456.0,0.40745]
[1730709718279,3.2078,2456.2,2455.9,0.4211]
[1730709718476,3.2078,2456.2,2455.9,0.40747]
[1730709718477,0.40747,2456.0,2455.9,0.40747]
[1730709719080,0.40747,2456.0,2455.9,0.98385321]
[1730709719701,0.40747,2456.0,2455.9,0.98427265]
[1730709719981,0.40746,2456.1,2456.0,0.40745]
[1730709720191,4.47866,2456.1,2456.0,0.98425265]
[1730709720589,0.40746,2456.1,2456.0,0.98425265]
[1730709721089,3.2078,2456.2,2456.0,0.57680265]
[1730709721290,3.2078,2456.2,2456.1,1.90891178]
[1730709721593,3.61523,2456.2,2456.1,1.90891178]
[1730709722184,3.61523,2456.2,2456.1,3.06670808]
[1730709722396,3.61523,2456.2,2456.1,1.90891178]
[1730709722994,3.61523,2456.2,2456.1,3.33880748]
[1730709723190,3.61523,2456.2,2456.1,3.33881996]
[1730709723586,0.40743,2456.2,2456.1,1.90891178]
[1730709723783,3.61522,2456.3,2456.2,0.40743]
[1730709724096,3.61522,2456.3,2456.2,2.34179178]
[1730709724688,3.61522,2456.3,2456.2,2.32470469]
[1730709725687,3.61522,2456.3,2456.2,2.32488595]
[1730709725883,3.2078,2456.3,2456.2,2.32488595]
[1730709726087,1.01844,2456.6,2456.5,0.40737]
[1730709726088,0.40739,2456.6,2456.5,0.40737]
[1730709726284,0.40739,2456.6,2456.5,0.97835306]
[1730709726483,0.40739,2456.6,2456.5,1.88298817]
[1730709726887,0.40739,2456.6,2456.5,0.97835306]
[1730709727306,0.40737,2456.7,2456.6,0.40735]
[1730709727509,0.40737,2456.7,2456.6,0.97833306]
[1730709727812,0.40735,2456.8,2456.7,0.40733]
[1730709727996,0.40735,2456.8,2456.7,1.43851306]
[1730709728203,3.2078,2456.9,2456.7,1.43851306]
[1730709728204,3.2078,2456.9,2456.7,1.03118306]
[1730709728509,3.61513,2456.9,2456.8,0.97831306]
[1730709728898,3.61513,2456.9,2456.8,0.57098306]
[1730709729208,0.40742,2456.3,2456.2,3.61523]
[1730709729405,0.40742,2456.3,2456.2,0.56526455]
[1730709729616,7.68642,2456.3,2456.2,0.56526455]
[1730709729812,0.4075,2455.8,2455.7,0.4602]
[1730709730003,8.6025,2456.3,2456.0,0.40745]
[1730709730004,0.40747,2456.1,2456.0,0.40745]
[1730709730205,0.40747,2456.1,2456.0,0.97278612]
[1730709730511,4.47867,2456.1,2456.0,0.56533612]
[1730709731111,0.40747,2456.1,2456.0,0.56533612]
[1730709731302,0.40747,2456.0,2455.9,0.40748]
[1730709731502,0.40747,2456.0,2455.9,0.56530168]
[1730709731503,3.61527,2456.0,2455.9,0.56530168]
[1730709731905,3.61527,2456.0,2455.9,0.97278168]
[1730709732208,3.61527,2456.0,2455.9,0.56530168]
[1730709732408,0.40747,2456.0,2455.9,0.56530168]
[1730709732610,3.61527,2456.0,2455.9,0.56530168]
[1730709732806,0.40748,2455.9,2455.8,0.40749]
[1730709733216,0.40748,2455.9,2455.8,0.97278405]
[1730709733612,0.40748,2455.9,2455.8,0.56529405]
[1730709734311,4.47948,2455.9,2455.8,0.56529405]
[1730709734711,0.40752,2455.7,2455.6,0.40752]
[1730709734913,0.40752,2455.7,2455.6,0.97277429]
[1730709735618,0.40752,2455.7,2455.6,0.56525429]
[1730709735918,0.40752,2455.7,2455.6,0.97278429]
[1730709736117,0.40752,2455.7,2455.6,0.97270311]
[1730709736712,0.40751,2455.8,2455.7,0.40749]
[1730709736912,0.40751,2455.8,2455.7,0.83769]
[1730709737714,0.40751,2455.8,2455.7,0.4302]
[1730709738122,0.40755,2455.6,2455.5,0.40754]
[1730709738320,0.40755,2455.6,2455.5,0.97250905]
[1730709739513,0.40755,2455.6,2455.5,0.40754]
[1730709739724,0.40755,2455.6,2455.5,0.97244607]
[1730709740115,0.40755,2455.6,2455.5,0.40754]
[1730709740317,0.40753,2455.7,2455.6,0.40752]
[1730709741518,0.40751,2455.8,2455.7,0.40749]
[1730709741816,0.4075,2455.8,2455.7,0.40749]
[1730709742023,3.6153,2455.8,2455.7,0.40749]
[1730709743418,3.2078,2455.8,2455.7,0.40749]
[1730709744118,3.2078,2455.8,2455.7,0.97212181]
[1730709744321,0.40747,2456.0,2455.9,0.40748]
[1730709747023,0.40747,2456.1,2456.0,0.40745]
[1730709747723,0.40747,2456.1,2456.0,0.83405]
[1730709748118,4.47867,2456.1,2456.0,0.83405]
[1730709748516,4.47867,2456.1,2456.0,0.83407]
[1730709749028,0.40753,2455.7,2455.6,0.40752]
[1730709749216,0.40753,2455.7,2455.6,1.41670299]